[Event "GrandPrix_29.05"]
[Site "Chess.com"]
[Date "2020.05.29"]
[Round "3"]
[White "Grandelicious"]
[Black "Dyadya81"]
[Result "1-0"]
[WhiteElo "2768"]
[BlackElo "2449"]
[TimeControl "600+2"]
[EndTime "10:28:39 PDT"]
[Termination "Grandelicious won by checkmate"]

1. Nf3 {[%clk 0:10:01.9]} 1... d5 {[%clk 0:09:58.3]} 2. g3 {[%clk 0:10:03]} 2...
Nc6 {[%clk 0:09:57.9]} 3. d4 {[%clk 0:10:01.5]} 3... Bg4 {[%clk 0:09:58.2]} 4.
Nbd2 {[%clk 0:09:55.1]} 4... Nf6 {[%clk 0:09:44.2]} 5. Bg2 {[%clk 0:09:53.5]}
5... h5 {[%clk 0:09:29.3]} 6. c3 {[%clk 0:09:19.9]} 6... Qd6 {[%clk 0:09:17.7]}
7. Qb3 {[%clk 0:08:49.9]} 7... Rb8 {[%clk 0:08:40.4]} 8. Nf1 {[%clk 0:07:39]}
8... Bxf3 {[%clk 0:08:19.2]} 9. Bxf3 {[%clk 0:07:40.9]} 9... e5 {[%clk 0:08:17]}
10. dxe5 {[%clk 0:07:13.1]} 10... Nxe5 {[%clk 0:08:15.4]} 11. Bf4 {[%clk
0:07:12.7]} 11... Nxf3+ {[%clk 0:07:38.6]} 12. exf3 {[%clk 0:07:14.6]} 12... Qd7
{[%clk 0:07:33.9]} 13. Ne3 {[%clk 0:07:04.1]} 13... Bd6 {[%clk 0:06:45.2]} 14.
Bxd6 {[%clk 0:06:47.8]} 14... Qxd6 {[%clk 0:06:46.5]} 15. O-O-O {[%clk
0:06:49.4]} 15... c6 {[%clk 0:05:59.1]} 16. Nf5 {[%clk 0:06:47.4]} 16... Qd7
{[%clk 0:06:00]} 17. Rhe1+ {[%clk 0:06:42.4]} 17... Kf8 {[%clk 0:05:59.4]} 18.
Qb4+ {[%clk 0:06:02.7]} 18... Kg8 {[%clk 0:05:57.6]} 19. Qf4 {[%clk 0:05:39.2]}
19... Re8 {[%clk 0:05:51.7]} 20. Nxg7 {[%clk 0:05:14.8]} 20... Kxg7 {[%clk
0:05:30.2]} 21. Qg5+ {[%clk 0:05:14.1]} 21... Kh7 {[%clk 0:05:31.4]} 22. Qxf6
{[%clk 0:05:12.9]} 22... Rxe1 {[%clk 0:05:16.5]} 23. Rxe1 {[%clk 0:05:14.8]}
23... Re8 {[%clk 0:05:17.2]} 24. Rxe8 {[%clk 0:03:53.8]} 24... Qxe8 {[%clk
0:05:19.1]} 25. Kd2 {[%clk 0:03:55.3]} 25... Qd7 {[%clk 0:04:45.1]} 26. h4
{[%clk 0:02:42.6]} 26... c5 {[%clk 0:04:44.6]} 27. Qg5 {[%clk 0:02:14.4]} 27...
Qb5 {[%clk 0:04:42.4]} 28. Qxh5+ {[%clk 0:02:10.7]} 28... Kg7 {[%clk 0:04:43.7]}
29. Qg5+ {[%clk 0:02:10]} 29... Kf8 {[%clk 0:04:24.4]} 30. b3 {[%clk 0:01:18.9]}
30... Qf1 {[%clk 0:04:08.6]} 31. Qe3 {[%clk 0:01:10.2]} 31... b6 {[%clk
0:04:09.8]} 32. h5 {[%clk 0:00:54.7]} 32... Qb1 {[%clk 0:04:06.4]} 33. Qh6+
{[%clk 0:00:48.2]} 33... Ke7 {[%clk 0:03:20]} 34. Qg5+ {[%clk 0:00:47.3]} 34...
Ke6 {[%clk 0:03:21.2]} 35. Qe3+ {[%clk 0:00:22.7]} 35... Kf6 {[%clk 0:03:03.5]}
36. Qf4+ {[%clk 0:00:23.5]} 36... Ke6 {[%clk 0:03:00.9]} 37. h6 {[%clk
0:00:23.9]} 37... Qb2+ {[%clk 0:02:56.1]} 38. Ke1 {[%clk 0:00:21.9]} 38... Qxc3+
{[%clk 0:02:46.5]} 39. Kf1 {[%clk 0:00:22.3]} 39... Qd3+ {[%clk 0:02:37.7]} 40.
Kg2 {[%clk 0:00:21.6]} 40... Qh7 {[%clk 0:02:32]} 41. Qg4+ {[%clk 0:00:14.6]}
41... Kf6 {[%clk 0:02:29.5]} 42. Qh5 {[%clk 0:00:13.9]} 42... d4 {[%clk
0:02:24.1]} 43. g4 {[%clk 0:00:15.3]} 43... d3 {[%clk 0:02:20.2]} 44. g5+ {[%clk
0:00:12.7]} 44... Ke7 {[%clk 0:02:16.6]} 45. Qh1 {[%clk 0:00:10.3]} 45... Qf5
{[%clk 0:02:02.6]} 46. Qc1 {[%clk 0:00:10.9]} 46... f6 {[%clk 0:01:56.2]} 47.
Qe3+ {[%clk 0:00:03.8]} 47... Kf7 {[%clk 0:01:57.1]} 48. gxf6 {[%clk 0:00:05.7]}
48... Kxf6 {[%clk 0:01:54.2]} 49. Kf1 {[%clk 0:00:06.9]} 49... b5 {[%clk
0:01:48]} 50. Ke1 {[%clk 0:00:07.7]} 50... Kg6 {[%clk 0:01:39.2]} 51. Kd2 {[%clk
0:00:07.5]} 51... c4 {[%clk 0:01:40.4]} 52. Qxa7 {[%clk 0:00:04.4]} 52... Kxh6
{[%clk 0:00:15.3]} 53. Qe3+ {[%clk 0:00:05.2]} 53... Kh5 {[%clk 0:00:13.4]} 54.
Qe4 {[%clk 0:00:04.2]} 54... Qg5+ {[%clk 0:00:10.6]} 55. f4 {[%clk 0:00:04]}
55... Qg4 {[%clk 0:00:07.1]} 56. Qh7# {[%clk 0:00:05]} 1-0

[Event "GrandPrix_29.05"]
[Site "Chess.com"]
[Date "2020.05.29"]
[Round "3"]
[White "Misterlose0"]
[Black "NikolaN98"]
[Result "1/2-1/2"]
[WhiteElo "1530"]
[BlackElo "1887"]
[TimeControl "600+2"]
[EndTime "10:28:40 PDT"]
[Termination "Game drawn by repetition"]

1. e4 {[%clk 0:10:01.9]} 1... c5 {[%clk 0:09:40.5]} 2. d3 {[%clk 0:10:02]} 2...
Nc6 {[%clk 0:09:36.6]} 3. g3 {[%clk 0:10:02.3]} 3... g6 {[%clk 0:09:28.8]} 4.
Bg2 {[%clk 0:10:02.9]} 4... Bg7 {[%clk 0:09:30.4]} 5. f4 {[%clk 0:10:04.2]} 5...
e6 {[%clk 0:09:30.3]} 6. Nf3 {[%clk 0:10:06.1]} 6... d5 {[%clk 0:09:29.6]} 7.
O-O {[%clk 0:10:08]} 7... Nge7 {[%clk 0:09:30.2]} 8. c3 {[%clk 0:10:07.7]} 8...
b6 {[%clk 0:09:17]} 9. Na3 {[%clk 0:10:08.2]} 9... Ba6 {[%clk 0:08:42.2]} 10. e5
{[%clk 0:09:54.1]} 10... h5 {[%clk 0:08:39.4]} 11. Re1 {[%clk 0:09:50.3]} 11...
Nf5 {[%clk 0:08:37.2]} 12. Ng5 {[%clk 0:07:47]} 12... Bb7 {[%clk 0:08:14.4]} 13.
Nc2 {[%clk 0:07:32]} 13... Bf8 {[%clk 0:08:11.5]} 14. Ne3 {[%clk 0:07:06.3]}
14... Nxe3 {[%clk 0:05:23.9]} 15. Bxe3 {[%clk 0:07:08.2]} 15... Be7 {[%clk
0:05:16.6]} 16. h4 {[%clk 0:06:19.5]} 16... Qd7 {[%clk 0:05:08.2]} 17. d4 {[%clk
0:05:55]} 17... cxd4 {[%clk 0:04:33.4]} 18. cxd4 {[%clk 0:05:54.8]} 18... Rc8
{[%clk 0:04:05.3]} 19. Bh3 {[%clk 0:05:28.2]} 19... Ba6 {[%clk 0:03:37.2]} 20.
a3 {[%clk 0:05:14.4]} 20... Na5 {[%clk 0:03:34.3]} 21. Bf2 {[%clk 0:04:49]}
21... Kf8 {[%clk 0:03:11.5]} 22. Qf3 {[%clk 0:04:20.8]} 22... Rc6 {[%clk
0:02:37.4]} 23. Rac1 {[%clk 0:04:16.1]} 23... Kg7 {[%clk 0:02:18.3]} 24. Be3
{[%clk 0:04:03.4]} 24... Rxc1 {[%clk 0:02:16.3]} 25. Bxc1 {[%clk 0:03:53.2]}
25... Qc8 {[%clk 0:01:45.6]} 26. Bd2 {[%clk 0:03:44.7]} 26... Nc4 {[%clk
0:01:44.5]} 27. Bc3 {[%clk 0:03:42.1]} 27... Qc6 {[%clk 0:01:26.9]} 28. Bf1
{[%clk 0:03:25.7]} 28... Bb7 {[%clk 0:01:11]} 29. Rc1 {[%clk 0:03:11.3]} 29...
Rc8 {[%clk 0:00:59.2]} 30. Bd3 {[%clk 0:03:07.3]} 30... Qd7 {[%clk 0:00:54]} 31.
Kf2 {[%clk 0:02:30.6]} 31... Bc6 {[%clk 0:00:51.8]} 32. g4 {[%clk 0:02:20.5]}
32... hxg4 {[%clk 0:00:48.4]} 33. Qxg4 {[%clk 0:02:22.4]} 33... Rh8 {[%clk
0:00:48.9]} 34. Rh1 {[%clk 0:02:08.7]} 34... Bxg5 {[%clk 0:00:19.2]} 35. fxg5
{[%clk 0:02:03.6]} 35... Qd8 {[%clk 0:00:14.6]} 36. Ke2 {[%clk 0:01:55.2]} 36...
b5 {[%clk 0:00:09.8]} 37. Qf4 {[%clk 0:01:39.7]} 37... a5 {[%clk 0:00:09.8]} 38.
Rf1 {[%clk 0:01:40.8]} 38... Be8 {[%clk 0:00:05.5]} 39. Ke1 {[%clk 0:01:18.1]}
39... Qe7 {[%clk 0:00:05.9]} 40. Be2 {[%clk 0:00:56.8]} 40... b4 {[%clk
0:00:04.8]} 41. axb4 {[%clk 0:00:58.7]} 41... axb4 {[%clk 0:00:06.2]} 42. Qf6+
{[%clk 0:00:53.8]} 42... Qxf6 {[%clk 0:00:07.4]} 43. gxf6+ {[%clk 0:00:41.4]}
43... Kg8 {[%clk 0:00:08.5]} 44. Bxb4 {[%clk 0:00:43.3]} 44... Rxh4 {[%clk
0:00:09.3]} 45. Bc3 {[%clk 0:00:42.4]} 45... Rh2 {[%clk 0:00:07.1]} 46. Rf2
{[%clk 0:00:15.9]} 46... Rh1+ {[%clk 0:00:06.4]} 47. Rf1 {[%clk 0:00:14]} 47...
Rh3 {[%clk 0:00:04.6]} 48. Bf3 {[%clk 0:00:11.2]} 48... Bb5 {[%clk 0:00:04.4]}
49. Rf2 {[%clk 0:00:10.9]} 49... Rh4 {[%clk 0:00:04.6]} 50. Be2 {[%clk
0:00:06.1]} 50... Rh1+ {[%clk 0:00:04.1]} 51. Rf1 {[%clk 0:00:06.2]} 51... Rh3
{[%clk 0:00:04.7]} 52. Rf3 {[%clk 0:00:06.8]} 52... Rh1+ {[%clk 0:00:04.7]} 53.
Rf1 {[%clk 0:00:07.9]} 53... Rh3 {[%clk 0:00:05.5]} 54. Rf3 {[%clk 0:00:02.8]}
54... Rh1+ {[%clk 0:00:06.8]} 55. Rf1 {[%clk 0:00:04]} 1/2-1/2

[Event "GrandPrix_29.05"]
[Site "Chess.com"]
[Date "2020.05.29"]
[Round "3"]
[White "ALeks_Ivlev"]
[Black "Pultis"]
[Result "1-0"]
[WhiteElo "2314"]
[BlackElo "2204"]
[TimeControl "600+2"]
[EndTime "10:28:40 PDT"]
[Termination "ALeks_Ivlev won on time"]

1. d4 {[%clk 0:10:01.9]} 1... Nf6 {[%clk 0:09:57.8]} 2. c4 {[%clk 0:10:01.2]}
2... g6 {[%clk 0:09:56.9]} 3. Nc3 {[%clk 0:10:01.2]} 3... d5 {[%clk 0:09:57.9]}
4. Nf3 {[%clk 0:09:52.7]} 4... Bg7 {[%clk 0:09:57.8]} 5. g3 {[%clk 0:09:50.2]}
5... dxc4 {[%clk 0:09:49.2]} 6. Qa4+ {[%clk 0:09:48.3]} 6... Nc6 {[%clk
0:09:35.9]} 7. Bg2 {[%clk 0:09:33.9]} 7... Nd7 {[%clk 0:09:01]} 8. Qxc4 {[%clk
0:08:27.3]} 8... Nb6 {[%clk 0:08:57.9]} 9. Qb3 {[%clk 0:07:44]} 9... O-O {[%clk
0:07:34.9]} 10. O-O {[%clk 0:07:07.9]} 10... Nxd4 {[%clk 0:06:36.5]} 11. Nxd4
{[%clk 0:07:07.2]} 11... Qxd4 {[%clk 0:06:38.4]} 12. Nb5 {[%clk 0:06:49.3]}
12... Qc4 {[%clk 0:06:31.5]} 13. Qxc4 {[%clk 0:06:20.6]} 13... Nxc4 {[%clk
0:06:33.4]} 14. Nxc7 {[%clk 0:06:21.9]} 14... Rb8 {[%clk 0:06:33.4]} 15. Nd5
{[%clk 0:06:16.3]} 15... Be6 {[%clk 0:06:09.9]} 16. Nxe7+ {[%clk 0:06:08]} 16...
Kh8 {[%clk 0:06:11.2]} 17. Bf4 {[%clk 0:06:08.9]} 17... Rbd8 {[%clk 0:06:09.8]}
18. e4 {[%clk 0:04:11.3]} 18... Nxb2 {[%clk 0:06:00]} 19. Nd5 {[%clk 0:04:06.8]}
19... Nd3 {[%clk 0:05:59.4]} 20. Rab1 {[%clk 0:04:00.6]} 20... Nxf4 {[%clk
0:05:58.4]} 21. gxf4 {[%clk 0:04:01.7]} 21... Rd7 {[%clk 0:05:40.6]} 22. Rfc1
{[%clk 0:03:54.2]} 22... f5 {[%clk 0:05:13.7]} 23. f3 {[%clk 0:03:53.8]} 23...
Bd4+ {[%clk 0:05:06.2]} 24. Kh1 {[%clk 0:03:53.3]} 24... Bxd5 {[%clk 0:04:49.5]}
25. exd5 {[%clk 0:03:52.6]} 25... b6 {[%clk 0:04:39.2]} 26. Bf1 {[%clk
0:03:46.1]} 26... Be3 {[%clk 0:04:23.2]} 27. Rd1 {[%clk 0:03:46.1]} 27... Rc8
{[%clk 0:04:22.1]} 28. Bb5 {[%clk 0:03:29.6]} 28... Rd6 {[%clk 0:04:21.9]} 29.
Bc6 {[%clk 0:03:25.2]} 29... Bxf4 {[%clk 0:04:21.8]} 30. Re1 {[%clk 0:03:20.6]}
30... Rc7 {[%clk 0:04:12.4]} 31. a4 {[%clk 0:03:06]} 31... Kg7 {[%clk
0:04:11.6]} 32. Re8 {[%clk 0:02:50.4]} 32... Kf6 {[%clk 0:03:55.2]} 33. Rbe1
{[%clk 0:02:50.1]} 33... Rcxc6 {[%clk 0:03:10]} 34. dxc6 {[%clk 0:02:50.8]}
34... Rxc6 {[%clk 0:03:11.9]} 35. h4 {[%clk 0:02:28.5]} 35... Rc7 {[%clk
0:02:20.7]} 36. Kg2 {[%clk 0:02:23.4]} 36... Kf7 {[%clk 0:02:07.5]} 37. R1e2
{[%clk 0:02:14.2]} 37... Rb7 {[%clk 0:01:57.6]} 38. Rc8 {[%clk 0:01:37]} 38...
a6 {[%clk 0:01:49.5]} 39. Rc4 {[%clk 0:01:36.4]} 39... Bd6 {[%clk 0:01:47.6]}
40. Rc6 {[%clk 0:01:34.4]} 40... Be7 {[%clk 0:01:46.6]} 41. Rb2 {[%clk
0:01:28.9]} 41... a5 {[%clk 0:00:20.2]} 42. Rcxb6 {[%clk 0:01:16.8]} 42... Rd7
{[%clk 0:00:21.7]} 43. Rb7 {[%clk 0:01:15.3]} 43... Rxb7 {[%clk 0:00:10.7]} 44.
Rxb7 {[%clk 0:01:15.4]} 44... Kf6 {[%clk 0:00:11.8]} 45. Ra7 {[%clk 0:01:13]}
45... Bb4 {[%clk 0:00:12.8]} 46. Rxh7 {[%clk 0:01:13.8]} 46... Ke6 {[%clk
0:00:10.4]} 47. Kf1 {[%clk 0:01:03.1]} 47... Be7 {[%clk 0:00:05.2]} 48. Ke2
{[%clk 0:00:57]} 48... Bb4 {[%clk 0:00:05.1]} 49. Kd3 {[%clk 0:00:57.2]} 49...
Ke5 {[%clk 0:00:06.3]} 50. Rg7 {[%clk 0:00:48]} 50... Kf6 {[%clk 0:00:07.5]} 51.
Rb7 {[%clk 0:00:48.1]} 51... Ke5 {[%clk 0:00:07.8]} 52. Rb6 {[%clk 0:00:41.6]}
52... Be1 {[%clk 0:00:08.7]} 53. Rxg6 {[%clk 0:00:38.8]} 53... Bxh4 {[%clk
0:00:09.3]} 54. Ke3 {[%clk 0:00:29.2]} 54... Be7 {[%clk 0:00:02.6]} 55. f4+
{[%clk 0:00:21.1]} 55... Kd5 {[%clk 0:00:03.9]} 56. Ra6 {[%clk 0:00:20.1]} 56...
Bc5+ {[%clk 0:00:03.5]} 57. Kd3 {[%clk 0:00:20.8]} 57... Bb4 {[%clk 0:00:05.2]}
58. Rf6 {[%clk 0:00:21.6]} 1-0

[Event "GrandPrix_29.05"]
[Site "Chess.com"]
[Date "2020.05.29"]
[Round "3"]
[White "Sanan_Sjugirov"]
[Black "grzechu96"]
[Result "1-0"]
[WhiteElo "2894"]
[BlackElo "2542"]
[TimeControl "600+2"]
[EndTime "10:28:41 PDT"]
[Termination "Sanan_Sjugirov won by resignation"]

1. d4 {[%clk 0:10:01.9]} 1... d5 {[%clk 0:09:58.5]} 2. c4 {[%clk 0:09:27.7]}
2... c6 {[%clk 0:09:57.9]} 3. Nf3 {[%clk 0:09:26.5]} 3... Nf6 {[%clk 0:09:58.5]}
4. e3 {[%clk 0:09:21.1]} 4... Bg4 {[%clk 0:09:55.1]} 5. Qb3 {[%clk 0:09:19.4]}
5... Qb6 {[%clk 0:09:15]} 6. Nc3 {[%clk 0:09:16.1]} 6... e6 {[%clk 0:09:07.8]}
7. Nh4 {[%clk 0:09:11.2]} 7... Be7 {[%clk 0:08:56.7]} 8. h3 {[%clk 0:09:08.6]}
8... Bh5 {[%clk 0:08:58]} 9. g4 {[%clk 0:09:07.9]} 9... Bg6 {[%clk 0:08:59.3]}
10. Nxg6 {[%clk 0:09:06.6]} 10... hxg6 {[%clk 0:09:01.2]} 11. Bg2 {[%clk
0:09:01.4]} 11... Nbd7 {[%clk 0:08:40.4]} 12. Bd2 {[%clk 0:08:56.7]} 12... a5
{[%clk 0:08:02.9]} 13. g5 {[%clk 0:08:02.3]} 13... Ng8 {[%clk 0:07:11.8]} 14. h4
{[%clk 0:07:40.1]} 14... a4 {[%clk 0:06:22.6]} 15. Qc2 {[%clk 0:07:17.1]} 15...
a3 {[%clk 0:04:33.8]} 16. b3 {[%clk 0:07:01.1]} 16... Bb4 {[%clk 0:04:33.7]} 17.
c5 {[%clk 0:04:51.6]} 17... Qc7 {[%clk 0:03:43.2]} 18. O-O-O {[%clk 0:04:15.6]}
18... Ne7 {[%clk 0:03:43.7]} 19. Bf3 {[%clk 0:02:59.6]} 19... b6 {[%clk
0:01:41.1]} 20. cxb6 {[%clk 0:02:56.6]} 20... Qxb6 {[%clk 0:01:41.1]} 21. h5
{[%clk 0:02:46.5]} 21... gxh5 {[%clk 0:01:35.3]} 22. Bxh5 {[%clk 0:02:45.9]}
22... g6 {[%clk 0:01:30.6]} 23. Be2 {[%clk 0:02:28.4]} 23... Rf8 {[%clk
0:01:23]} 24. Kb1 {[%clk 0:02:04.6]} 24... Nf5 {[%clk 0:01:18.2]} 25. Rc1 {[%clk
0:01:59.7]} 25... Qa5 {[%clk 0:01:07.9]} 26. Be1 {[%clk 0:01:44.1]} 26... Ke7
{[%clk 0:00:40.6]} 27. Na4 {[%clk 0:01:28.7]} 27... Rfc8 {[%clk 0:00:39.5]} 28.
Bd3 {[%clk 0:01:22.2]} 28... Nd6 {[%clk 0:00:13]} 29. Bxb4 {[%clk 0:01:15.4]}
29... Qxb4 {[%clk 0:00:14.9]} 30. Nc5 {[%clk 0:01:17]} 30... Nxc5 {[%clk
0:00:15.6]} 31. Qxc5 {[%clk 0:01:18.6]} 31... Qxc5 {[%clk 0:00:15.9]} 32. Rxc5
{[%clk 0:01:20.5]} 32... Nb7 {[%clk 0:00:17.2]} 33. Rc2 {[%clk 0:01:19.1]} 33...
c5 {[%clk 0:00:17.8]} 34. Bxg6 {[%clk 0:00:55.5]} 34... cxd4 {[%clk 0:00:09.1]}
35. Rh7 {[%clk 0:00:52.3]} 35... Nd6 {[%clk 0:00:05.8]} 36. exd4 {[%clk
0:00:50.3]} 36... Rxc2 {[%clk 0:00:04.4]} 37. Bxc2 {[%clk 0:00:46.6]} 37... Nb5
{[%clk 0:00:05.6]} 38. g6 {[%clk 0:00:44.7]} 38... Rf8 {[%clk 0:00:06.5]} 39.
Bd3 {[%clk 0:00:19.1]} 39... Nxd4 {[%clk 0:00:07.5]} 40. b4 {[%clk 0:00:17.1]}
40... Kf6 {[%clk 0:00:08.7]} 41. Rxf7+ {[%clk 0:00:12.1]} 41... Rxf7 {[%clk
0:00:10.6]} 42. gxf7 {[%clk 0:00:14]} 42... Kxf7 {[%clk 0:00:12.3]} 43. Kc1
{[%clk 0:00:14.1]} 43... Ke7 {[%clk 0:00:12.8]} 44. Kd2 {[%clk 0:00:15.1]} 44...
e5 {[%clk 0:00:13.6]} 45. Kc3 {[%clk 0:00:15.5]} 45... Kd6 {[%clk 0:00:15.1]}
46. f4 {[%clk 0:00:11.1]} 46... Nc6 {[%clk 0:00:11.1]} 47. b5 {[%clk 0:00:07.7]}
47... exf4 {[%clk 0:00:04.9]} 48. bxc6 {[%clk 0:00:08.2]} 48... Kxc6 {[%clk
0:00:06.8]} 49. Kd4 {[%clk 0:00:05.6]} 49... Kd6 {[%clk 0:00:06.4]} 50. Be2
{[%clk 0:00:06.2]} 50... Kc6 {[%clk 0:00:04.3]} 51. Bf3 {[%clk 0:00:06.9]} 51...
Kb5 {[%clk 0:00:05.5]} 52. Bxd5 {[%clk 0:00:07.8]} 52... Kb4 {[%clk 0:00:06.5]}
53. Ke4 {[%clk 0:00:08.2]} 53... Kc5 {[%clk 0:00:07.8]} 54. Bb3 {[%clk
0:00:08.8]} 1-0

[Event "GrandPrix_29.05"]
[Site "Chess.com"]
[Date "2020.05.29"]
[Round "3"]
[White "Firegrizzly"]
[Black "Saxar85"]
[Result "1/2-1/2"]
[WhiteElo "2450"]
[BlackElo "2617"]
[TimeControl "600+2"]
[EndTime "10:28:41 PDT"]
[Termination "Game drawn by agreement"]

1. e4 {[%clk 0:10:01.9]} 1... e5 {[%clk 0:09:52.3]} 2. Nf3 {[%clk 0:10:00.8]}
2... Nc6 {[%clk 0:09:52.5]} 3. d4 {[%clk 0:10:00.9]} 3... exd4 {[%clk
0:09:52.5]} 4. Nxd4 {[%clk 0:10:01.9]} 4... Bc5 {[%clk 0:09:52.8]} 5. Nxc6
{[%clk 0:10:00.8]} 5... Qf6 {[%clk 0:09:50.7]} 6. Qf3 {[%clk 0:10:01.6]} 6...
bxc6 {[%clk 0:09:47.5]} 7. Nc3 {[%clk 0:09:31.6]} 7... d6 {[%clk 0:09:45.5]} 8.
Be3 {[%clk 0:08:38.1]} 8... Bb4 {[%clk 0:08:47.2]} 9. Bd2 {[%clk 0:08:06.7]}
9... Rb8 {[%clk 0:08:39.4]} 10. O-O-O {[%clk 0:07:43.6]} 10... Qxf3 {[%clk
0:08:27.4]} 11. gxf3 {[%clk 0:07:43.7]} 11... Ne7 {[%clk 0:08:28.2]} 12. h4
{[%clk 0:07:31.6]} 12... O-O {[%clk 0:08:22]} 13. h5 {[%clk 0:07:20.6]} 13...
Be6 {[%clk 0:08:09.1]} 14. f4 {[%clk 0:06:11.6]} 14... f5 {[%clk 0:08:01.2]} 15.
e5 {[%clk 0:06:07.2]} 15... Nd5 {[%clk 0:07:02.6]} 16. Ne2 {[%clk 0:04:42.5]}
16... Bc5 {[%clk 0:06:29.1]} 17. Rh2 {[%clk 0:03:27.1]} 17... Rfe8 {[%clk
0:06:03.9]} 18. h6 {[%clk 0:03:15.1]} 18... g6 {[%clk 0:06:02.1]} 19. a3 {[%clk
0:03:04.6]} 19... Bb6 {[%clk 0:04:40.2]} 20. Bg2 {[%clk 0:02:47]} 20... Bf7
{[%clk 0:03:59.4]} 21. Bf3 {[%clk 0:01:53.5]} 21... dxe5 {[%clk 0:03:40.1]} 22.
fxe5 {[%clk 0:01:53.3]} 22... Rxe5 {[%clk 0:02:29.3]} 23. Nf4 {[%clk 0:01:52.9]}
23... Ree8 {[%clk 0:01:15.4]} 24. Nd3 {[%clk 0:01:48.5]} 24... Bd4 {[%clk
0:01:05.9]} 25. c3 {[%clk 0:01:38.8]} 25... Bf6 {[%clk 0:01:05.5]} 26. Rg2
{[%clk 0:01:28.9]} 26... Rbd8 {[%clk 0:00:57.7]} 27. Kc2 {[%clk 0:01:15.8]}
27... Re7 {[%clk 0:00:38.9]} 28. c4 {[%clk 0:01:09.7]} 28... Nb6 {[%clk
0:00:38.5]} 29. b3 {[%clk 0:01:10.7]} 29... Nd7 {[%clk 0:00:20.3]} 30. Bxc6
{[%clk 0:00:59.5]} 30... Ne5 {[%clk 0:00:20.1]} 31. Nxe5 {[%clk 0:00:58.4]}
31... Rxe5 {[%clk 0:00:21]} 32. Bf3 {[%clk 0:00:51.1]} 32... Ree8 {[%clk
0:00:17.1]} 33. Be3 {[%clk 0:00:47.9]} 33... Rxd1 {[%clk 0:00:17.2]} 34. Bxd1
{[%clk 0:00:47.9]} 34... a6 {[%clk 0:00:17.5]} 35. Bf3 {[%clk 0:00:48.3]} 35...
Rd8 {[%clk 0:00:17.6]} 36. a4 {[%clk 0:00:32.7]} 36... Kf8 {[%clk 0:00:18.3]}
37. Rg1 {[%clk 0:00:33.1]} 37... Bd4 {[%clk 0:00:18.9]} 38. Bg5 {[%clk 0:00:29]}
38... Rb8 {[%clk 0:00:14.9]} 39. Rd1 {[%clk 0:00:28.2]} 39... c5 {[%clk
0:00:15.7]} 40. Be3 {[%clk 0:00:25.9]} 40... Bxe3 {[%clk 0:00:16.4]} 41. fxe3
{[%clk 0:00:26.4]} 41... Ke7 {[%clk 0:00:17.6]} 42. a5 {[%clk 0:00:25.3]} 42...
g5 {[%clk 0:00:17.8]} 43. Bd5 {[%clk 0:00:21.4]} 43... Rd8 {[%clk 0:00:17]} 44.
Kc3 {[%clk 0:00:21.6]} 44... g4 {[%clk 0:00:17.1]} 45. b4 {[%clk 0:00:20.6]}
45... cxb4+ {[%clk 0:00:18.2]} 46. Kxb4 {[%clk 0:00:22.3]} 46... Bxd5 {[%clk
0:00:19.1]} 47. cxd5 {[%clk 0:00:22.6]} 47... Kd6 {[%clk 0:00:20.3]} 48. Rc1
{[%clk 0:00:19.6]} 48... Rb8+ {[%clk 0:00:19.9]} 49. Ka4 {[%clk 0:00:19.8]}
49... Kxd5 {[%clk 0:00:19.8]} 50. Rc7 {[%clk 0:00:21.3]} 50... Rb1 {[%clk
0:00:17.1]} 51. Rxh7 {[%clk 0:00:21.3]} 51... Rh1 {[%clk 0:00:17.7]} 52. Kb4
{[%clk 0:00:17.9]} 52... g3 {[%clk 0:00:14.1]} 53. Rg7 {[%clk 0:00:18.6]} 53...
Rxh6 {[%clk 0:00:14.4]} 54. Rxg3 {[%clk 0:00:18.9]} 54... Rc6 {[%clk 0:00:14.7]}
55. Rg8 {[%clk 0:00:17.6]} 55... Ke4 {[%clk 0:00:15]} 56. Re8+ {[%clk
0:00:18.3]} 56... Kf3 {[%clk 0:00:13.2]} 57. Re5 {[%clk 0:00:18.3]} 57... f4
{[%clk 0:00:14.3]} 58. exf4 {[%clk 0:00:18.4]} 58... Kxf4 {[%clk 0:00:15.4]} 59.
Re7 {[%clk 0:00:19.4]} 59... Kf5 {[%clk 0:00:15.9]} 60. Rb7 {[%clk 0:00:20.3]}
60... Ke5 {[%clk 0:00:16.1]} 61. Rb6 {[%clk 0:00:21.9]} 61... Kd6 {[%clk
0:00:16.8]} 62. Rxc6+ {[%clk 0:00:22.2]} 62... Kxc6 {[%clk 0:00:17.9]} 63. Kc4
{[%clk 0:00:24.1]} 63... Kd6 {[%clk 0:00:18.7]} 64. Kd4 {[%clk 0:00:24.4]}
1/2-1/2